fUSD/lending_fUSD_20250606
["ID","MTS","AMOUNT","RATE_DAILY","PERIOD"]
[364760371,1749231043633,-480.0,0.00027397,5]
[364760373,1749231043643,-480.0,0.00027397,5]
[364760375,1749231043652,-1129.3,0.00027397,5]
[364760377,1749231043661,-3773.12,0.00027397,5]
[364760379,1749231043670,-480.0,0.00027397,5]
[364760381,1749231043678,-480.0,0.00027397,5]
[364760383,1749231043687,-480.0,0.00027397,5]
[364760385,1749231043696,-480.0,0.00027397,5]
[364760387,1749231043705,-437.289691,0.00027397,2]
[364760389,1749231043714,-480.0,0.00027397,5]
[364760391,1749231043724,-1005.81,0.00027397,5]
[364760392,1749231043733,-480.0,0.00027397,5]
[364760395,1749231043742,-480.0,0.00027397,5]
[364760397,1749231043751,-480.0,0.00027397,5]
[364760399,1749231043760,-480.0,0.00027397,5]
[364760400,1749231043769,-424.42628348,0.00027397,5]
[364760402,1749231043778,-6846.54,0.00027397,5]
[364760404,1749231043787,-480.0,0.00027397,5]
[364760406,1749231043796,-480.0,0.00027397,5]
[364760408,1749231043805,-480.0,0.00027397,5]
[364760410,1749231043814,-480.0,0.00027397,5]
[364760412,1749231043823,-2190.11,0.00027397,5]
[364760414,1749231043833,-480.0,0.00027397,5]
[364760416,1749231043841,-904.08,0.00027397,5]
[364760418,1749231043851,-420.0,0.00027397,5]
[364760420,1749231043860,-1343.38,0.00027397,5]
[364760422,1749231043869,-1450.06,0.00027397,5]
[364760424,1749231043878,-480.0,0.00027397,5]
[364760426,1749231043888,-480.0,0.00027397,5]
[364760428,1749231043897,-810.69,0.00027397,5]
[364760430,1749231043906,-480.0,0.00027397,5]
[364760432,1749231043915,-480.0,0.00027397,5]
[364760434,1749231043924,-6132.26,0.00027397,5]
[364760436,1749231043934,-1035.9,0.00027397,5]
[364760438,1749231043943,-634.25,0.00027397,5]
[364760440,1749231043952,-480.0,0.00027397,5]
[364760442,1749231043961,-480.0,0.00027397,5]
[364760444,1749231043971,-480.0,0.00027397,5]
[364760446,1749231043980,-480.0,0.00027397,5]
[364760448,1749231043992,-1809.38,0.00027397,5]
[364760450,1749231044001,-480.0,0.00027397,5]
[364760452,1749231044010,-480.0,0.00027397,5]
[364760454,1749231044020,-480.0,0.00027397,5]
[364760456,1749231044028,-480.0,0.00027397,5]
[364760458,1749231044038,-480.0,0.00027397,5]
[364760460,1749231044048,-1334.49,0.00027397,5]
[364760462,1749231044056,-480.0,0.00027397,5]
[364760464,1749231044065,-480.0,0.00027397,5]
[364760466,1749231044075,-494.53481212,0.00027397,5]
[364760468,1749231044084,-3027.72,0.00027397,5]
[364760470,1749231044092,-551.04,0.00027397,5]
[364760472,1749231044101,-618.31,0.00027397,5]
[364760474,1749231044111,-480.0,0.00027397,5]
[364760476,1749231044120,-611.68,0.00027397,5]
[364760479,1749231044130,-480.0,0.00027397,5]
[364760480,1749231044140,-480.0,0.00027397,5]
[364760482,1749231044150,-480.0,0.00027397,5]
[364760484,1749231044159,-480.0,0.00027397,5]
[364760486,1749231044169,-480.0,0.00027397,5]
[364760488,1749231044178,-480.0,0.00027397,5]
[364760490,1749231044187,-537.76,0.00027397,5]
[364760492,1749231044196,-2160.88,0.00027397,5]
[364760495,1749231044206,-432.69760027,0.00027397,5]
[364760497,1749231044215,-1518.64,0.00027397,5]
[364760499,1749231044226,-600.66,0.00027397,5]
[364760501,1749231044236,-727.71,0.00027397,5]
[364760503,1749231044244,-915.47,0.00027397,5]
[364760505,1749231044254,-480.0,0.00027397,5]
[364760506,1749231044263,-1815.44,0.00027397,5]
[364760508,1749231044272,-480.0,0.00027397,5]
[364760510,1749231044281,-830.641302,0.00027397,5]
[364760512,1749231044290,-480.0,0.00027397,5]
[364760514,1749231044299,-480.0,0.00027397,5]
[364760516,1749231044308,-480.0,0.00027397,5]
[364760518,1749231044317,-550.46,0.00027397,5]
[364760520,1749231044326,-776.67,0.00027397,5]
[364760522,1749231044336,-14875.22,0.00027397,5]
[364760524,1749231044345,-480.0,0.00027397,5]
[364760526,1749231044355,-480.0,0.00027397,5]
[364760528,1749231044364,-480.0,0.00027397,5]
[364760530,1749231044373,-214.89071463,0.00027397,5]
[364760532,1749231044383,-881.4,0.00027397,5]
[364760534,1749231044392,-881.4,0.00027397,5]
[364760536,1749231044402,-881.4,0.00027397,5]
[364760538,1749231044411,-480.0,0.00027397,5]
[364760540,1749231044420,-881.4,0.00027397,5]
[364760542,1749231044429,-881.4,0.00027397,5]
[364760544,1749231044438,-480.0,0.00027397,5]
[364760546,1749231044447,-2079.42,0.00027397,5]
[364760548,1749231044456,-942.06,0.00027397,5]
[364760550,1749231044465,-480.0,0.00027397,5]
[364760552,1749231044476,-918.19,0.00027397,5]
[364760554,1749231044485,-480.0,0.00027397,5]
[364760556,1749231044494,-480.0,0.00027397,5]
[364760558,1749231044503,-480.0,0.00027397,5]
[364760560,1749231044512,-2609.36,0.00027397,5]
[364760562,1749231044521,-480.0,0.00027397,5]
[364760564,1749231044531,-1549.12,0.00027397,5]
[364760566,1749231044540,-480.0,0.00027397,5]
[364760568,1749231044549,-1645.45,0.00027397,5]
[364760569,1749231044558,-480.0,0.00027397,5]
[364760571,1749231044567,-211.33821141,0.00027397,5]
[364760573,1749231044576,-480.0,0.00027397,5]
[364760575,1749231044585,-1029.09,0.00027397,5]
[364760577,1749231044595,-480.0,0.00027397,5]
[364760580,1749231044605,-4031.29,0.00027397,5]
[364760582,1749231044615,-1513.2,0.00027397,5]
[364760583,1749231044624,-1445.8,0.00027397,5]
[364760585,1749231044633,-480.0,0.00027397,5]
[364760587,1749231044642,-480.0,0.00027397,5]
[364760589,1749231044651,-427.09394536,0.00027397,5]
[364760591,1749231044660,-480.0,0.00027397,5]
[364760593,1749231044670,-480.0,0.00027397,5]
[364760595,1749231044678,-595.23,0.00027397,5]
[364760597,1749231044687,-480.0,0.00027397,5]
[364760599,1749231044697,-750.71,0.00027397,5]
[364760601,1749231044706,-480.0,0.00027397,5]
[364760603,1749231044716,-546.02,0.00027397,5]
[364760605,1749231044725,-480.0,0.00027397,5]
[364760607,1749231044735,-480.0,0.00027397,5]
[364760609,1749231044744,-480.0,0.00027397,5]
[364760611,1749231044754,-513.29,0.00027397,5]
[364760613,1749231044763,-2581.05,0.00027397,5]
[364760615,1749231044772,-4891.68,0.00027397,5]
[364760617,1749231044781,-542.74,0.00027397,5]
[364760619,1749231044790,-480.0,0.00027397,5]
[364760621,1749231044800,-642.72,0.00027397,5]
[364760623,1749231044809,-220.0,0.00027397,2]
[364760625,1749231044821,-625.16,0.00027397,5]
[364760627,1749231044830,-723.16,0.00027397,5]
[364760629,1749231044839,-480.0,0.00027397,5]
[364760631,1749231044849,-480.0,0.00027397,5]
[364760633,1749231044858,-1678.7,0.00027397,5]
[364760635,1749231044867,-480.0,0.00027397,5]
[364760637,1749231044876,-480.0,0.00027397,5]
[364760639,1749231044885,-443.62402992,0.00027397,5]
[364760641,1749231044895,-2715.22,0.00027397,5]
[364760643,1749231044904,-480.0,0.00027397,5]
[364760645,1749231044913,-480.0,0.00027397,2]
[364760647,1749231044923,-163.158847,0.00027397,5]
[364760649,1749231044932,-484.73129032,0.00027397,5]
[364760651,1749231044941,-491.11,0.00027397,5]
[364760653,1749231044950,-1513.67,0.00027397,5]
[364760655,1749231044959,-480.0,0.00027397,5]
[364760657,1749231044969,-8763.12,0.00027397,5]
[364760659,1749231044978,-602.79866779,0.00027397,5]
[364760661,1749231044990,-480.0,0.00027397,2]
[364760663,1749231044999,-677.46,0.00027397,5]
[364760665,1749231045009,-1267.28,0.00027397,5]
[364760667,1749231045018,-480.0,0.00027397,5]
[364760669,1749231045027,-480.0,0.00027397,5]
[364760671,1749231045037,-53404.47,0.00027397,5]
[364760673,1749231045046,-480.0,0.00027397,5]
[364760675,1749231045056,-480.0,0.00027397,5]
[364760677,1749231045066,-4447.39,0.00027397,5]
[364760679,1749231045075,-1133.93,0.00027397,5]
[364760681,1749231045084,-480.0,0.00027397,5]
[364760683,1749231045093,-480.0,0.00027397,5]
[364760685,1749231045103,-2424.76,0.00027397,5]
[364760687,1749231045112,-480.0,0.00027397,5]
[364760689,1749231045122,-555.57,0.00027397,5]
[364760691,1749231045131,-480.0,0.00027397,5]
[364760693,1749231045140,-1714.76,0.00027397,5]
[364760695,1749231045150,-7201.44,0.00027397,5]
[364760696,1749231045161,-1710.87,0.00027397,5]
[364760699,1749231045170,-480.0,0.00027397,5]
[364760700,1749231045179,-480.0,0.00027397,5]
[364760702,1749231045188,-438.36805313,0.00027397,5]
[364760704,1749231045198,-741.47,0.00027397,5]
[364760707,1749231045208,-480.0,0.00027397,5]
[364760709,1749231045217,-480.0,0.00027397,5]
[364760710,1749231045227,-246.05266771,0.00027397,5]
[364760712,1749231045236,-480.0,0.00027397,5]
[364760714,1749231045245,-531.62,0.00027397,5]
[364760716,1749231045255,-261.24435137,0.00027397,5]
[364760718,1749231045264,-480.0,0.00027397,5]
[364760720,1749231045273,-480.0,0.00027397,5]
[364760722,1749231045282,-480.0,0.00027397,5]
[364760724,1749231045291,-504.63,0.00027397,5]
[364760726,1749231045301,-480.0,0.00027397,5]
[364760728,1749231045310,-480.0,0.00027397,5]
[364760730,1749231045319,-555.93,0.00027397,2]
[364760732,1749231045329,-166.49,0.00027397,2]
[364760734,1749231045338,-157.46,0.00027397,2]
[364760736,1749231045347,-203.0,0.0002743,2]
[364760738,1749231045356,-202.99998,0.0002743,2]
[364760740,1749231045365,-2432.44168308,0.00027436,2]
[364760742,1749231045374,-899.8243845,0.00027489,2]
[364760744,1749231045383,-1000.0,0.000275,2]
[364760746,1749231045392,-881.4,0.00027538,5]
[364760748,1749231045401,-500.0,0.00027549,5]
[364760750,1749231045410,-942.06,0.00027549,5]
[364760752,1749231045419,-9231.99389362,0.00027552,2]
[364760754,1749231045428,-881.4,0.00027559,5]
[364760756,1749231045437,-480.0,0.0002756,5]
[364760758,1749231045447,-480.0,0.0002756,5]
[364760760,1749231045456,-480.0,0.0002756,5]
[364760762,1749231045465,-480.0,0.0002756,5]
[364760764,1749231045475,-596.89242783,0.0002756,5]
[364760766,1749231045484,-283.90117501,0.0002756,5]
[364760768,1749231045493,-480.0,0.0002756,5]
[364760770,1749231045502,-499.43211618,0.0002756,5]
[364760772,1749231045511,-480.0,0.0002756,5]
[364760774,1749231045520,-415.97566595,0.0002756,5]
[364760776,1749231045530,-480.0,0.0002756,5]
[364760778,1749231045539,-480.0,0.0002756,5]
[364760780,1749231045548,-480.0,0.0002756,5]
[364760782,1749231045557,-480.0,0.0002756,5]
[364760784,1749231045567,-498.30516853,0.0002756,5]
[364760786,1749231045576,-480.0,0.0002756,5]
[364760788,1749231045585,-480.0,0.0002756,5]
[364760790,1749231045595,-480.0,0.0002756,5]
[364760792,1749231045604,-480.0,0.0002756,5]
[364760794,1749231045614,-480.0,0.0002756,5]
[364760796,1749231045623,-480.0,0.0002756,5]
[364760798,1749231045633,-480.0,0.0002756,5]
[364760799,1749231045643,-480.0,0.0002756,5]
[364760800,1749231045652,-480.0,0.0002756,5]
[364760801,1749231045661,-480.0,0.0002756,5]
[364760802,1749231045671,-480.0,0.0002756,5]
[364760803,1749231045680,-480.0,0.0002756,5]
[364760804,1749231045690,-480.0,0.0002756,5]
[364760805,1749231045699,-480.0,0.0002756,5]
[364760806,1749231045708,-480.0,0.0002756,5]
[364760807,1749231045717,-480.0,0.0002756,5]
[364760808,1749231045727,-480.0,0.0002756,5]
[364760809,1749231045737,-480.0,0.0002756,5]
[364760810,1749231045746,-480.0,0.0002756,5]
[364760812,1749231045755,-480.0,0.0002756,5]
[364760814,1749231045764,-494.47936792,0.0002756,5]
[364760816,1749231045773,-480.0,0.0002756,5]
[364760818,1749231045782,-480.0,0.0002756,5]
[364760820,1749231045792,-480.0,0.0002756,5]
[364760822,1749231045801,-480.0,0.0002756,5]
[364760824,1749231045812,-480.0,0.0002756,5]
[364760826,1749231045821,-480.0,0.0002756,5]
[364760828,1749231045830,-318.55486923,0.0002756,5]
[364760830,1749231045839,-480.0,0.0002756,5]
[364760832,1749231045848,-600.0,0.0002756,30]
[364760834,1749231045857,-500.0,0.0002756,2]
[364760836,1749231045867,-480.0,0.0002756,5]
[364760838,1749231045876,-365.80959777,0.0002756,5]
[364760840,1749231045885,-480.0,0.0002756,5]
[364760842,1749231045895,-480.0,0.0002756,5]
[364760844,1749231045904,-480.0,0.0002756,5]
[364760846,1749231045913,-480.0,0.0002756,5]
[364760848,1749231045922,-480.0,0.0002756,5]
[364760850,1749231045931,-480.0,0.0002756,5]
[364760852,1749231045940,-480.0,0.0002756,5]
[364760854,1749231045949,-480.0,0.0002756,5]
[364760856,1749231045958,-480.0,0.0002756,5]
[364760858,1749231045968,-480.0,0.0002756,5]
[364760860,1749231045977,-480.0,0.0002756,5]
[364760861,1749231045987,-4221.76,0.0002756,5]
[364760864,1749231045999,-3141.85,0.0002756,5]
[364760866,1749231046009,-474.80200705,0.0002756,5]
[364760867,1749231046018,-480.0,0.0002756,5]
[364760869,1749231046027,-1000.0,0.0002756,5]
[364760871,1749231046036,-480.0,0.0002756,5]
[364760873,1749231046045,-480.0,0.0002756,5]
[364760875,1749231046054,-480.0,0.0002756,5]
[364760877,1749231046063,-480.0,0.0002756,5]
[364760879,1749231046072,-480.0,0.0002756,5]
[364760881,1749231046082,-480.0,0.0002756,5]
[364760883,1749231046092,-513.11890785,0.0002756,5]
[364760886,1749231046101,-480.0,0.0002756,5]
[364760889,1749231046111,-480.0,0.0002756,5]
[364760891,1749231046120,-480.0,0.0002756,5]
[364760893,1749231046130,-480.0,0.0002756,5]
[364760895,1749231046140,-480.0,0.0002756,5]
[364760898,1749231046151,-480.0,0.0002756,5]
[364760901,1749231046161,-480.0,0.0002756,5]
[364760904,1749231046171,-487.91754776,0.0002756,5]
[364760907,1749231046180,-480.0,0.0002756,5]
[364760910,1749231046190,-480.0,0.0002756,5]
[364760912,1749231046199,-8002.08,0.0002756,5]
[364760914,1749231046209,-480.0,0.0002756,5]
[364760916,1749231046218,-480.0,0.0002756,5]
[364760918,1749231046227,-480.0,0.0002756,5]
[364760920,1749231046236,-480.0,0.0002756,5]
[364760923,1749231046246,-426.87521079,0.0002756,5]
[364760924,1749231046255,-480.0,0.0002756,5]
[364760927,1749231046265,-480.0,0.0002756,5]
[364760928,1749231046274,-482.95726208,0.0002756,5]
[364760931,1749231046284,-480.0,0.0002756,5]
[364760933,1749231046294,-483.4190331,0.0002756,5]
[364760935,1749231046305,-1083.43,0.0002756,5]
[364760937,1749231046314,-480.0,0.0002756,5]
[364760939,1749231046323,-480.0,0.0002756,5]
[364760940,1749231046332,-480.0,0.0002756,5]
[364760943,1749231046342,-489.83473255,0.0002756,5]
[364760944,1749231046351,-487.53173442,0.0002756,5]
[364760946,1749231046360,-1011.61,0.0002756,5]
[364760960,1749231046484,-480.0,0.0002756,5]
[364760962,1749231046493,-480.0,0.0002756,5]
[364760964,1749231046503,-491.30183378,0.0002756,5]
[364760966,1749231046513,-480.0,0.0002756,5]
[364760968,1749231046524,-480.0,0.0002756,5]
[364760970,1749231046533,-480.0,0.0002756,5]
[364760972,1749231046543,-449.30207386,0.0002756,5]
[364760974,1749231046553,-480.0,0.0002756,5]
[364760976,1749231046562,-480.0,0.0002756,5]
[364760978,1749231046571,-487.77524339,0.0002756,5]
[364760980,1749231046581,-162.78820394,0.0002756,5]
[364760982,1749231046591,-487.73057646,0.0002756,5]
[364760984,1749231046600,-349.30714137,0.0002756,5]
[364760986,1749231046610,-480.53432489,0.0002756,5]
[364760988,1749231046619,-480.0,0.0002756,5]
[364760990,1749231046629,-679.31,0.0002756,5]
[364760992,1749231046639,-480.0,0.0002756,5]
[364760994,1749231046648,-1070.97,0.0002756,5]
[364760996,1749231046659,-480.0,0.0002756,5]
[364760998,1749231046668,-480.0,0.0002756,5]
[364761000,1749231046678,-480.0,0.0002756,5]
[364761003,1749231046688,-480.0,0.0002756,5]
[364761005,1749231046697,-846.05,0.0002756,5]
[364761007,1749231046707,-480.0,0.0002756,5]
[364761009,1749231046717,-480.0,0.0002756,5]
[364761011,1749231046729,-480.0,0.0002756,5]
[364761013,1749231046739,-480.0,0.0002756,5]
[364761015,1749231046749,-480.0,0.0002756,5]
[364761017,1749231046759,-480.0,0.0002756,5]
[364761019,1749231046768,-500.0,0.0002756,5]
[364761021,1749231046778,-480.0,0.0002756,5]
[364761023,1749231046788,-480.0,0.0002756,5]
[364761025,1749231046799,-480.0,0.0002756,5]
[364761027,1749231046808,-480.0,0.0002756,5]
[364761029,1749231046818,-480.0,0.0002756,5]
[364761031,1749231046828,-480.0,0.0002756,5]
[364761033,1749231046838,-480.0,0.0002756,5]
[364761035,1749231046847,-500.0,0.0002756,5]
[364761037,1749231046857,-480.0,0.0002756,5]
[364761039,1749231046867,-480.0,0.0002756,5]
[364761041,1749231046877,-483.25585743,0.0002756,5]
[364761043,1749231046886,-485.74498494,0.0002756,5]
[364761045,1749231046896,-10558.58,0.0002756,5]
[364761047,1749231046907,-480.0,0.0002756,5]
[364761049,1749231046916,-480.0,0.0002756,5]
[364761051,1749231046926,-483.60662542,0.0002756,5]
[364761053,1749231046936,-480.0,0.0002756,5]
[364761055,1749231046945,-480.0,0.0002756,5]
[364761057,1749231046954,-480.0,0.0002756,5]
[364761059,1749231046964,-480.0,0.0002756,5]
[364761061,1749231046974,-497.08054199,0.0002756,5]
[364761063,1749231046984,-508.57,0.0002756,5]
[364761065,1749231046998,-520.88,0.0002756,5]
[364761068,1749231047008,-480.0,0.0002756,5]
[364761070,1749231047017,-484.81077877,0.0002756,5]
[364761072,1749231047027,-550.96438493,0.0002756,5]
[364761074,1749231047038,-554.82,0.0002756,5]
[364761076,1749231047047,-480.0,0.0002756,5]
[364761078,1749231047057,-537.03,0.0002756,5]
[364761080,1749231047067,-480.0,0.0002756,5]
[364761082,1749231047077,-494.04549238,0.0002756,5]
[364761084,1749231047086,-172.36670289,0.0002756,5]
[364761085,1749231047095,-480.0,0.0002756,5]
[364761086,1749231047104,-480.0,0.0002756,5]
[364761087,1749231047114,-480.0,0.0002756,5]
[364761088,1749231047123,-1129.53,0.0002756,5]
[364761089,1749231047132,-480.0,0.0002756,5]
[364761090,1749231047142,-277.50472787,0.0002756,5]
[364761091,1749231047153,-480.0,0.0002756,5]
[364761092,1749231047163,-480.0,0.0002756,5]
[364761094,1749231047172,-480.0,0.0002756,5]
[364761096,1749231047181,-480.0,0.0002756,5]
[364761098,1749231047191,-480.0,0.0002756,5]
[364761100,1749231047200,-480.0,0.0002756,5]
[364761102,1749231047210,-4346.62,0.0002756,5]
[364761104,1749231047221,-388.83195538,0.0002756,5]
[364761107,1749231047231,-485.69882971,0.0002756,5]
[364761109,1749231047240,-1538.77,0.0002756,5]
[364761111,1749231047250,-467.38889236,0.0002756,5]
[364761113,1749231047259,-480.0,0.0002756,5]
[364761114,1749231047269,-480.0,0.0002756,5]
[364761116,1749231047278,-1955.35,0.0002756,5]
[364761118,1749231047287,-480.0,0.0002756,5]
[364761120,1749231047297,-500.0,0.0002756,5]
[364761121,1749231047306,-480.0,0.0002756,5]
[364761122,1749231047315,-480.0,0.0002756,5]
[364761123,1749231047324,-1771.62,0.0002756,5]
[364761124,1749231047334,-480.0,0.0002756,5]
[364761125,1749231047344,-439.50307822,0.0002756,5]
[364761126,1749231047354,-480.0,0.0002756,5]
[364761127,1749231047363,-480.0,0.0002756,5]
[364761128,1749231047372,-480.0,0.0002756,5]
[364761129,1749231047382,-2127.64,0.0002756,5]
[364761130,1749231047391,-480.0,0.0002756,5]
[364761131,1749231047401,-480.0,0.0002756,5]
[364761132,1749231047410,-881.4,0.0002756,5]
[364761133,1749231047419,-942.06,0.0002756,5]
[364761134,1749231047428,-480.0,0.0002756,5]
[364761135,1749231047438,-532.50806894,0.0002756,5]
[364761136,1749231047447,-480.0,0.0002756,5]
[364761137,1749231047457,-480.0,0.0002756,5]
[364761138,1749231047466,-480.0,0.0002756,5]
[364761139,1749231047477,-480.0,0.0002756,5]
[364761140,1749231047487,-480.0,0.0002756,5]
[364761141,1749231047496,-480.0,0.0002756,5]
[364761142,1749231047506,-482.08396667,0.0002756,5]
[364761143,1749231047515,-151.0,0.00027561,7]
[364761144,1749231047524,-480.0,0.00027561,5]
[364761145,1749231047533,-646.85,0.00027561,5]
[364761146,1749231047543,-539.13,0.00027561,5]
[364761147,1749231047552,-682.86,0.00027561,5]
[364761148,1749231047562,-480.0,0.00027561,5]
[364761149,1749231047571,-480.0,0.00027561,5]
[364761150,1749231047580,-542.22,0.00027561,5]
[364761151,1749231047590,-480.0,0.00027561,5]
[364761152,1749231047599,-480.0,0.00027561,5]
[364761153,1749231047609,-480.0,0.00027561,5]
[364761154,1749231047619,-480.0,0.00027561,5]
[364761155,1749231047628,-480.0,0.00027561,5]
[364761156,1749231047637,-480.0,0.00027561,5]
[364761157,1749231047647,-480.0,0.00027561,5]
[364761158,1749231047657,-480.0,0.00027561,5]
[364761159,1749231047667,-480.0,0.00027561,5]
[364761160,1749231047676,-480.0,0.00027561,5]
[364761161,1749231047685,-480.0,0.00027561,5]
[364761162,1749231047695,-480.0,0.00027561,5]
[364761163,1749231047704,-480.0,0.00027561,5]
[364761164,1749231047713,-480.0,0.00027561,5]
[364761165,1749231047723,-480.0,0.00027561,5]
[364761166,1749231047732,-480.0,0.00027561,5]
[364761167,1749231047742,-480.0,0.00027561,5]
[364761168,1749231047751,-480.0,0.00027561,5]
[364761169,1749231047761,-480.72,0.00027561,5]
[364761170,1749231047770,-480.0,0.00027561,5]
[364761171,1749231047779,-480.0,0.00027561,5]
[364761172,1749231047789,-592.74,0.00027561,5]
[364761173,1749231047798,-480.0,0.00027561,5]
[364761174,1749231047808,-480.0,0.00027561,5]
[364761175,1749231047818,-1160.33,0.00027561,5]
[364761176,1749231047827,-663.63,0.00027561,5]
[364761177,1749231047837,-480.0,0.00027561,5]
[364761178,1749231047846,-504.76,0.00027561,5]
[364761179,1749231047855,-480.0,0.00027561,5]
[364761180,1749231047866,-480.0,0.00027561,5]
[364761181,1749231047875,-480.0,0.00027561,5]
[364761182,1749231047884,-480.0,0.00027561,5]
[364761183,1749231047894,-480.0,0.00027561,5]
[364761184,1749231047903,-480.0,0.00027561,5]
[364761185,1749231047913,-480.0,0.00027561,5]
[364761186,1749231047922,-480.0,0.00027561,5]
[364761187,1749231047931,-480.0,0.00027561,5]
[364761188,1749231047941,-480.0,0.00027561,5]
[364761189,1749231047950,-480.0,0.00027561,5]
[364761190,1749231047959,-931.36,0.00027561,5]
[364761191,1749231047969,-503.15,0.00027561,5]
[364761192,1749231047979,-1397.249091,0.00027561,5]
[364761193,1749231047990,-480.0,0.00027561,5]
[364761194,1749231048001,-480.0,0.00027561,5]
[364761195,1749231048010,-480.0,0.00027561,5]
[364761196,1749231048019,-514.43,0.00027561,5]
[364761197,1749231048029,-1342.600141,0.00027561,5]
[364761198,1749231048038,-494.02,0.00027561,5]
[364761199,1749231048048,-480.0,0.00027561,5]
[364761200,1749231048058,-480.0,0.00027561,5]
[364761201,1749231048068,-480.0,0.00027561,5]
[364761202,1749231048078,-480.0,0.00027561,5]
[364761203,1749231048087,-866.85,0.00027561,5]
[364761204,1749231048097,-302.77426636,0.00027561,5]
[364761205,1749231048106,-480.0,0.00027561,5]
[364761206,1749231048115,-480.0,0.00027561,5]
[364761207,1749231048124,-480.0,0.00027561,5]
[364761208,1749231048133,-480.0,0.00027561,5]
[364761209,1749231048143,-480.0,0.00027561,5]
[364761210,1749231048152,-788.52,0.00027561,5]
[364761211,1749231048163,-480.0,0.00027561,5]
[364761212,1749231048172,-1095.49,0.00027561,5]
[364761213,1749231048183,-530.83,0.00027561,5]
[364761214,1749231048193,-480.0,0.00027561,5]
[364761215,1749231048202,-569.26,0.00027561,5]
[364761216,1749231048211,-1106.73,0.00027561,5]
[364761217,1749231048220,-491.18,0.00027561,5]
[364761218,1749231048229,-480.0,0.00027561,5]
[364761219,1749231048239,-480.0,0.00027561,5]
[364761220,1749231048248,-480.0,0.00027561,5]
[364761221,1749231048257,-480.0,0.00027561,5]
[364761222,1749231048266,-1049.81,0.00027561,5]
[364761223,1749231048275,-480.0,0.00027561,5]
[364761224,1749231048285,-480.0,0.00027561,5]
[364761225,1749231048294,-621.63060408,0.00027561,5]
[364761226,1749231048303,-707.37,0.00027561,5]
[364761227,1749231048312,-480.0,0.00027561,5]
[364761228,1749231048322,-480.0,0.00027561,5]
[364761229,1749231048331,-480.0,0.00027561,5]
[364761230,1749231048342,-649.66,0.00027561,5]
[364761231,1749231048351,-480.0,0.00027561,5]
[364761232,1749231048360,-465.749696,0.00027561,5]
[364761233,1749231048369,-480.0,0.00027561,5]
[364761234,1749231048379,-525.53,0.00027561,5]
[364761235,1749231048388,-480.0,0.00027561,5]
[364761236,1749231048399,-1275.761779,0.00027561,5]
[364761237,1749231048407,-764.9,0.00027561,5]
[364761238,1749231048417,-480.0,0.00027561,5]
[364761239,1749231048426,-480.0,0.00027561,5]
[364761240,1749231048435,-1000.0,0.00027561,2]
[364761241,1749231048444,-480.0,0.00027561,5]
[364761242,1749231048454,-480.0,0.00027561,5]
[364761243,1749231048463,-480.0,0.00027561,5]